fUST/lending_fUST_20250520
["ID","MTS","AMOUNT","RATE_DAILY","PERIOD"]
[361741712,1747746633120,-430.0,0.00016438,2]
[361741713,1747746633130,-430.0,0.00016438,2]
[361741714,1747746633139,-430.0,0.00016438,2]
[361741715,1747746633149,-430.0,0.00016438,2]
[361741716,1747746633159,-430.0,0.00016438,2]
[361741717,1747746633169,-430.0,0.00016438,2]
[361741718,1747746633179,-430.0,0.00016438,2]
[361741719,1747746633188,-450.0,0.00016438,2]
[361741720,1747746633198,-1203.7,0.00016438,2]
[361741721,1747746633207,-430.0,0.00016438,2]
[361741722,1747746633217,-430.0,0.00016438,2]
[361741723,1747746633226,-430.0,0.00016438,2]
[361741724,1747746633236,-465.83,0.00016438,2]
[361741725,1747746633245,-430.0,0.00016438,2]
[361741726,1747746633255,-430.0,0.00016438,2]
[361741727,1747746633264,-522.33,0.00016438,2]
[361741728,1747746633274,-430.0,0.00016438,2]
[361741729,1747746633286,-378.07723109,0.00016438,2]
[361741730,1747746633299,-430.0,0.00016438,2]
[361741731,1747746633312,-430.0,0.00016438,2]
[361741732,1747746633326,-450.0,0.00016438,2]
[361741733,1747746633345,-567.9,0.00016438,2]
[361741734,1747746633367,-450.0,0.00016438,2]
[361741735,1747746633382,-462.5,0.00016438,2]
[361741736,1747746633394,-430.0,0.00016438,2]
[361741737,1747746633406,-430.0,0.00016438,2]
[361741738,1747746633419,-450.0,0.00016438,2]
[361741739,1747746633432,-430.0,0.00016438,2]
[361741740,1747746633444,-450.0,0.00016438,2]
[361741741,1747746633457,-450.0,0.00016438,2]
[361741742,1747746633470,-450.0,0.00016438,2]
[361741743,1747746633482,-1662.09,0.00016438,2]
[361741744,1747746633496,-537.61,0.00016438,2]
[361741745,1747746633509,-444.58218698,0.00016438,2]
[361741746,1747746633522,-430.0,0.00016438,2]
[361741747,1747746633535,-430.0,0.00016438,2]
[361741748,1747746633548,-430.0,0.00016438,2]
[361741749,1747746633560,-430.0,0.00016438,2]
[361741750,1747746633574,-453.98,0.00016438,2]
[361741751,1747746633586,-430.0,0.00016438,2]
[361741752,1747746633598,-430.0,0.00016438,2]
[361741753,1747746633610,-430.0,0.00016438,2]
[361741754,1747746633622,-450.0,0.00016438,2]
[361741755,1747746633637,-513.25,0.00016438,2]
[361741756,1747746633651,-430.0,0.00016438,2]
[361741757,1747746633667,-450.0,0.00016438,2]
[361741758,1747746633681,-430.0,0.00016438,2]
[361741759,1747746633694,-430.0,0.00016438,2]
[361741760,1747746633707,-450.0,0.00016438,2]
[361741761,1747746633720,-450.0,0.00016438,2]
[361741762,1747746633733,-450.0,0.00016438,2]
[361741763,1747746633746,-574.01,0.00016438,2]
[361741764,1747746633758,-562.4225291,0.00016438,2]
[361741765,1747746633769,-939.28,0.00016438,2]
[361741766,1747746633780,-874.91956737,0.00016438,2]
[361741767,1747746633790,-402.83752486,0.00016438,2]
[361741768,1747746633803,-457.98,0.00016438,2]
[361741769,1747746633814,-553.78,0.00016438,2]
[361741770,1747746633827,-1169.97,0.00016438,2]
[361741771,1747746633840,-719.0,0.00016438,2]
[361741772,1747746633853,-719.0,0.00016438,2]
[361741773,1747746633866,-450.0,0.00016438,2]
[361741774,1747746633879,-719.0,0.00016438,2]
[361741775,1747746633891,-719.0,0.00016438,2]
[361741776,1747746633904,-719.0,0.00016438,2]
[361741777,1747746633917,-719.0,0.00016438,2]
[361741778,1747746633930,-719.0,0.00016438,2]
[361741779,1747746633949,-719.0,0.00016438,2]
[361741780,1747746633962,-655.41,0.00016438,2]
[361741781,1747746633976,-719.0,0.00016438,2]
[361741782,1747746633988,-719.0,0.00016438,2]
[361741783,1747746634000,-719.0,0.00016438,2]
[361741784,1747746634011,-719.0,0.00016438,2]
[361741785,1747746634021,-719.0,0.00016438,2]
[361741786,1747746634033,-719.0,0.00016438,2]
[361741787,1747746634044,-719.0,0.00016438,2]
[361741788,1747746634055,-719.0,0.00016438,2]
[361741789,1747746634068,-430.0,0.00016438,2]
[361741790,1747746634081,-430.0,0.00016438,2]
[361741791,1747746634094,-719.0,0.00016438,2]
[361741792,1747746634107,-719.0,0.00016438,2]
[361741793,1747746634119,-719.0,0.00016438,2]
[361741794,1747746634130,-719.0,0.00016438,2]
[361741795,1747746634140,-688.82384909,0.00016495,2]
[361741796,1747746634152,-725.5858414,0.000165,2]
[361741797,1747746634164,-153.0,0.00016575,2]
[361741798,1747746634175,-153.0,0.00016575,2]
[361741799,1747746634190,-454.70836415,0.00016576,2]
[361741800,1747746634203,-8685.64501412,0.0001659,2]
[361741801,1747746634214,-158.7125629,0.000167,2]
[361741802,1747746634227,-450.0,0.00016712,2]
[361741803,1747746634237,-450.0,0.00016712,2]
[361741804,1747746634249,-168.33931887,0.00016712,2]
[361741805,1747746634260,-430.0,0.00016712,2]
[361741806,1747746634272,-430.0,0.00016712,2]
[361741807,1747746634283,-386.39185728,0.00016712,2]
[361741808,1747746634294,-450.47,0.00016712,2]
[361741809,1747746634306,-430.0,0.00016712,2]
[361741810,1747746634317,-241.11,0.00016712,2]
[361741811,1747746634328,-430.0,0.00016712,2]
[361741812,1747746634341,-430.0,0.00016712,2]
[361741813,1747746634353,-170.24789963,0.00016712,2]
[361741814,1747746634365,-160.08485987,0.00016712,2]
[361741815,1747746634377,-430.0,0.00016712,2]
[361741816,1747746634394,-430.0,0.00016712,2]
[361741817,1747746634406,-430.0,0.00016712,2]
[361741818,1747746634418,-430.0,0.00016712,2]
[361741819,1747746634430,-430.0,0.00016712,2]
[361741820,1747746634442,-1203.7,0.00016712,2]
[361741821,1747746634454,-348.55,0.00016712,2]
[361741822,1747746634465,-430.0,0.00016712,2]
[361741823,1747746634477,-430.0,0.00016712,2]
[361741824,1747746634490,-430.0,0.00016712,2]
[361741825,1747746634502,-430.0,0.00016712,2]
[361741826,1747746634514,-430.0,0.00016712,2]
[361741827,1747746634528,-430.0,0.00016712,2]
[361741828,1747746634540,-430.0,0.00016712,2]
[361741829,1747746634552,-462.5,0.00016712,2]
[361741830,1747746634563,-430.0,0.00016712,2]
[361741831,1747746634575,-430.0,0.00016712,2]
[361741832,1747746634587,-151.0,0.00016712,2]
[361741833,1747746634599,-430.0,0.00016712,2]
[361741834,1747746634610,-151.0,0.00016712,2]
[361741835,1747746634622,-537.61,0.00016712,2]
[361741836,1747746634634,-1662.09,0.00016712,2]
[361741837,1747746634646,-430.0,0.00016712,2]
[361741838,1747746634658,-430.0,0.00016712,2]
[361741839,1747746634672,-154.619579,0.00016712,2]
[361741840,1747746634685,-430.0,0.00016712,2]
[361741841,1747746634696,-256.53,0.00016712,2]
[361741842,1747746634708,-430.0,0.00016712,2]
[361741843,1747746634719,-513.25,0.00016712,2]
[361741844,1747746634731,-430.0,0.00016712,2]
[361741845,1747746634744,-400.0,0.00016712,2]
[361741846,1747746634755,-430.0,0.00016712,2]
[361741847,1747746634766,-574.01,0.00016712,2]
[361741848,1747746634778,-939.28,0.00016712,2]
[361741849,1747746634789,-457.98,0.00016712,2]
[361741850,1747746634800,-151.0,0.00016712,2]
[361741851,1747746634811,-553.78,0.00016712,2]
[361741852,1747746634822,-1169.97,0.00016712,2]
[361741853,1747746634833,-655.41,0.00016712,2]
[361741854,1747746634845,-430.0,0.00016712,2]
[361741855,1747746634856,-207.4,0.00016844,2]
[361741856,1747746634868,-8386.88278582,0.00016934,2]
[361741921,1747746640567,-0.00403494,0.00014906,2]
[361742227,1747746646173,-1169.02019171,0.00014757,2]
[361742229,1747746646182,-299.99596506,0.00014906,2]
[361742231,1747746646192,-420.0,0.00016315,2]
[361742233,1747746646202,-719.0,0.00016438,2]
[361742235,1747746646211,-719.0,0.00016438,2]
[361742237,1747746646221,-719.0,0.00016438,2]
[361742239,1747746646230,-268.09067073,0.00016438,2]
[361742974,1747746860947,2041.0,0.00027397,120]
[361742975,1747747444764,-154.89059655,0.00013292,2]
[361742984,1747747698412,243.98608957,0.00010618,2]
[361742991,1747747791702,1533.8995333,0.00013,2]
[361742994,1747747819766,-152.35007314,0.00013699,2]
[361742995,1747747821288,-56.20608986,0.00013699,2]
[361742996,1747747821310,-96.14398328,0.00015,2]
[361743027,1747747836745,-152.35007314,0.0001485,2]
[361743029,1747747836755,-185.00262384,0.00015,2]
[361743031,1747747836765,-162.64730302,0.00015465,2]
[361743106,1747747838199,-337.90960781,0.00015465,2]
[361743124,1747747846448,-1136.60302017,0.00015465,2]
[361743125,1747747846459,-178.2662318,0.00015465,2]
[361743126,1747747846469,-448.44373173,0.00016338,2]
[361743127,1747747846479,-300.0,0.00016437,2]
[361743128,1747747846488,-300.0,0.00016437,2]
[361743129,1747747846498,-200.0,0.00016438,2]
[361743130,1747747846508,-450.0,0.00016438,2]
[361743131,1747747846517,-450.0,0.00016438,2]
[361743132,1747747846527,-224.24726365,0.00016438,2]
[361743133,1747747846536,-450.0,0.00016438,2]
[361743134,1747747846546,-400.0,0.00016438,2]
[361743135,1747747846556,-196.0,0.00016438,2]
[361743136,1747747846566,-430.0,0.00016438,2]
[361743137,1747747846575,-430.0,0.00016438,2]
[361743138,1747747846596,-430.0,0.00016438,2]
[361743139,1747747846607,-430.0,0.00016438,2]
[361743140,1747747846618,-430.0,0.00016438,2]
[361743141,1747747846629,-430.0,0.00016438,2]
[361743142,1747747846639,-430.0,0.00016438,2]
[361743143,1747747846649,-409.16087521,0.00016438,2]
[361743144,1747747846659,-350.0,0.00016438,2]
[361743145,1747747846671,-430.0,0.00016438,2]
[361743146,1747747846683,-430.0,0.00016438,2]
[361743147,1747747846693,-430.0,0.00016438,2]
[361743148,1747747846704,-430.0,0.00016438,2]
[361743149,1747747846714,-430.0,0.00016438,2]
[361743150,1747747846727,-623.37,0.00016438,2]
[361743151,1747747846737,-516.8958381,0.00016438,2]
[361743152,1747747846747,-450.0,0.00016438,2]
[361743153,1747747846758,-430.0,0.00016438,2]
[361743154,1747747846768,-430.0,0.00016438,2]
[361743155,1747747846779,-430.0,0.00016438,2]
[361743156,1747747846789,-430.0,0.00016438,2]
[361743157,1747747846799,-400.0,0.00016438,2]
[361743158,1747747846810,-430.0,0.00016438,2]
[361743159,1747747846821,-430.0,0.00016438,2]
[361743160,1747747846831,-400.0,0.00016438,2]
[361743161,1747747846842,-430.0,0.00016438,2]
[361743162,1747747846852,-400.0,0.00016438,2]
[361743163,1747747846862,-370.42812331,0.00016438,2]
[361743164,1747747846872,-1103.39,0.00016438,2]
[361743165,1747747846882,-430.0,0.00016438,2]
[361743166,1747747846892,-430.0,0.00016438,2]
[361743167,1747747846902,-430.0,0.00016438,2]
[361743168,1747747846911,-430.0,0.00016438,2]
[361743169,1747747846921,-430.0,0.00016438,2]
[361743170,1747747846930,-363.50471902,0.00016438,2]
[361743171,1747747846940,-430.0,0.00016438,2]
[361743172,1747747846951,-430.0,0.00016438,2]
[361743173,1747747846961,-270.31,0.00016438,2]
[361743174,1747747846971,-99.38019701,0.00016438,2]
[361743175,1747747846992,-393.42980299,0.00016438,2]
[361743176,1747747847003,-430.0,0.00016438,2]
[361743177,1747747847012,-430.0,0.00016438,2]
[361743178,1747747847022,-430.0,0.00016438,2]
[361743179,1747747847032,-430.0,0.00016438,2]
[361743180,1747747847043,-1571.87,0.00016438,2]
[361743181,1747747847053,-470.48,0.00016438,2]
[361743182,1747747847065,-430.0,0.00016438,2]
[361743183,1747747847077,-430.0,0.00016438,2]
[361743184,1747747847086,-430.0,0.00016438,2]
[361743185,1747747847096,-544.92,0.00016438,2]
[361743186,1747747847106,-142.23557199,0.00016438,2]
[361743187,1747747847120,-287.76442801,0.00016438,2]
[361743188,1747747847131,-507.63,0.00016438,2]
[361743189,1747747847141,-316.01958104,0.00016438,2]
[361743190,1747747847153,-430.0,0.00016438,2]
[361743191,1747747847163,-430.0,0.00016438,2]
[361743192,1747747847173,-1106.74,0.00016438,2]
[361743193,1747747847183,-430.0,0.00016438,2]
[361743194,1747747847197,-430.0,0.00016438,2]
[361743195,1747747847208,-484.84,0.00016438,2]
[361743196,1747747847217,-861.01,0.00016438,2]
[361743197,1747747847227,-430.0,0.00016438,2]
[361743198,1747747847236,-777.3677384,0.000165,2]
[361743199,1747747847246,-409.39921803,0.00016643,2]
[361743200,1747747847256,-1051.107024,0.00016646,2]
[361743201,1747747847266,-151.0,0.00016712,2]
[361743202,1747747847276,-154.897987,0.00016712,2]
[361743203,1747747847285,-151.0,0.00016712,2]
[361743204,1747747847295,-205.76701,0.00016712,2]
[361743205,1747747847305,-205.76701,0.00016712,2]
[361743206,1747747847315,-67.48990464,0.00016712,2]
[361743216,1747748044257,166.62260403,0.00013,2]
[361743217,1747748061262,924.08,0.00013,2]
[361743219,1747748101491,159.48633858,7.5e-07,2]
[361743220,1747748101614,159.48633858,7.5e-07,2]
[361743221,1747748231661,499.999999,0.00025007,120]
[361743222,1747748297864,500.0,0.00025007,120]
[361743223,1747748345885,2505.0,0.00027397,120]
[361743225,1747748463472,2989.0,0.00025015,30]
[361743232,1747748701687,2152.74434259,0.00025015,30]
[361743236,1747748724378,2191.90136459,0.00025015,30]
[361743237,1747748768346,155.0,0.00025015,120]
[361743238,1747748846848,2175.0,0.00013,2]
[361743243,1747748929247,500.0,0.00025015,120]
[361743274,1747749032409,-664.98674796,0.00013192,2]
[361743275,1747749032419,-217.400521,0.00013699,2]
[361743276,1747749032431,-6267.1656586,0.00015413,2]
[361743277,1747749032440,-270.5059553,0.00015477,2]
[361743278,1747749032451,-392.38826522,0.00016338,2]
[361743279,1747749032465,-300.0,0.00016436,2]
[361743280,1747749032475,-300.0,0.00016436,2]
[361743281,1747749032485,-300.0,0.00016436,2]
[361743282,1747749032495,-300.0,0.00016437,2]
[361743283,1747749032505,-430.0,0.00016438,2]
[361743284,1747749032514,-450.0,0.00016438,2]
[361743285,1747749032524,-249.09,0.00016438,2]
[361743286,1747749032535,-321.25266767,0.00016438,2]
[361743287,1747749032544,-430.0,0.00016438,2]
[361743288,1747749032554,-430.0,0.00016438,2]
[361743289,1747749032564,-430.0,0.00016438,2]
[361743290,1747749032574,-430.0,0.00016438,2]
[361743291,1747749032583,-430.0,0.00016438,2]
[361743292,1747749032593,-304.67018468,0.00016438,2]
[361743293,1747749032603,-400.0,0.00016438,2]
[361743294,1747749032612,-430.0,0.00016438,2]
[361743295,1747749032622,-430.0,0.00016438,2]
[361743296,1747749032632,-430.0,0.00016438,2]
[361743297,1747749032641,-825.13,0.00016438,2]
[361743298,1747749032652,-585.25,0.00016438,2]
[361743299,1747749032661,-488.76,0.00016438,2]
[361743300,1747749032671,-709.82,0.00016438,2]
[361743301,1747749032681,-466.19,0.00016438,2]
[361743302,1747749032690,-430.0,0.00016438,2]
[361743303,1747749032700,-430.0,0.00016438,2]
[361743304,1747749032709,-430.0,0.00016438,2]
[361743306,1747749032719,-430.0,0.00016438,2]
[361743307,1747749032729,-430.0,0.00016438,2]
[361743308,1747749032739,-468.21,0.00016438,2]
[361743309,1747749032748,-430.0,0.00016438,2]
[361743310,1747749032757,-430.0,0.00016438,2]
[361743311,1747749032767,-430.0,0.00016438,2]
[361743313,1747749032776,-430.0,0.00016438,2]
[361743314,1747749032786,-430.0,0.00016438,2]
[361743315,1747749032796,-430.0,0.00016438,2]
[361743316,1747749032805,-499.79,0.00016438,2]
[361743317,1747749032815,-430.0,0.00016438,2]
[361743318,1747749032825,-430.0,0.00016438,2]
[361743319,1747749032834,-1265.02,0.00016438,2]
[361743320,1747749032844,-293.64,0.00016438,2]
[361743321,1747749032853,-430.0,0.00016438,2]
[361743322,1747749032863,-487.77,0.00016438,2]
[361743323,1747749032872,-430.0,0.00016438,2]
[361743324,1747749032882,-430.0,0.00016438,2]
[361743325,1747749032892,-430.0,0.00016438,2]
[361743326,1747749032902,-1746.66,0.00016438,2]
[361743327,1747749032911,-430.0,0.00016438,2]
[361743328,1747749032922,-430.0,0.00016438,2]
[361743329,1747749032931,-430.0,0.00016438,2]
[361743330,1747749032941,-430.0,0.00016438,2]
[361743331,1747749032950,-430.0,0.00016438,2]
[361743332,1747749032960,-430.0,0.00016438,2]
[361743333,1747749032969,-430.0,0.00016438,2]
[361743334,1747749032978,-495.65,0.00016438,2]
[361743335,1747749032988,-615.97,0.00016438,2]
[361743336,1747749032997,-566.03,0.00016438,2]
[361743337,1747749033007,-445.3,0.00016438,2]
[361743338,1747749033016,-1237.28,0.00016438,2]
[361743339,1747749033025,-430.0,0.00016438,2]
[361743340,1747749033035,-430.0,0.00016438,2]
[361743341,1747749033045,-430.0,0.00016438,2]
[361743342,1747749033055,-544.63,0.00016438,2]
[361743343,1747749033065,-500.0,0.00016438,2]
[361743344,1747749033074,-945.996322,0.00016595,2]
[361743345,1747749033084,-569.8226027,0.000166,2]
[361743346,1747749033094,-568.7323466,0.000166,2]
[361743347,1747749033104,-158.28077,0.00016665,3]
[361743348,1747749033113,-30486.0713641,0.0001671,2]
[361743349,1747749033123,-389.45444027,0.00016711,2]
[361743350,1747749033132,-500.0,0.00016711,2]
[361743351,1747749033142,-500.0,0.00016711,2]
[361743352,1747749033152,-408.94208914,0.00016711,2]
[361743353,1747749033162,-154.762587,0.00016711,2]
[361743354,1747749033173,-473.94133035,0.00016711,2]
[361743355,1747749033184,-500.0,0.00016711,2]
[361743356,1747749033194,-500.0,0.00016711,2]
[361743357,1747749033204,-500.0,0.00016711,2]
[361743358,1747749033214,-500.0,0.00016711,2]
[361743359,1747749033224,-453.96169492,0.00016711,2]
[361743360,1747749033234,-500.0,0.00016711,2]
[361743361,1747749033244,-500.0,0.00016711,2]
[361743362,1747749033255,-500.0,0.00016711,2]
[361743363,1747749033265,-500.0,0.00016711,2]
[361743364,1747749033274,-541.49976419,0.00016711,2]
[361743365,1747749033284,-430.0,0.00016712,2]
[361743366,1747749033294,-182.09,0.00016712,2]
[361743367,1747749033304,-430.0,0.00016712,2]
[361743368,1747749033314,-189.76,0.00016712,2]
[361743369,1747749033325,-374.3,0.00016712,2]
[361743370,1747749033335,-430.0,0.00016712,2]
[361743371,1747749033345,-430.0,0.00016712,2]
[361743372,1747749033356,-430.0,0.00016712,2]
[361743373,1747749033366,-825.13,0.00016712,2]
[361743374,1747749033377,-585.25,0.00016712,2]
[361743375,1747749033387,-488.76,0.00016712,2]
[361743376,1747749033397,-709.82,0.00016712,2]
[361743377,1747749033407,-466.19,0.00016712,2]
[361743378,1747749033418,-430.0,0.00016712,2]
[361743379,1747749033431,-430.0,0.00016712,2]
[361743380,1747749033442,-151.0,0.00016712,2]
[361743381,1747749033456,-430.0,0.00016712,2]
[361743382,1747749033466,-151.0,0.00016712,2]
[361743383,1747749033476,-231.12561634,0.00016712,2]
[361743384,1747749033487,-151.0,0.00016712,2]
[361743385,1747749033498,-169.38846902,0.00016712,2]
[361743386,1747749033603,-260.61153098,0.00016712,2]
[361743387,1747749033613,-468.21,0.00016712,2]
[361743388,1747749033622,-430.0,0.00016712,2]
[361743389,1747749033632,-430.0,0.00016712,2]
[361743390,1747749033642,-430.0,0.00016712,2]
[361743391,1747749033652,-151.0,0.00016712,2]
[361743392,1747749033661,-430.0,0.00016712,2]
[361743393,1747749033675,-151.0,0.00016712,2]
[361743394,1747749033685,-430.0,0.00016712,2]
[361743395,1747749033695,-151.0,0.00016712,2]
[361743396,1747749033705,-430.0,0.00016712,2]
[361743397,1747749033714,-499.79,0.00016712,2]
[361743398,1747749033724,-430.0,0.00016712,2]
[361743399,1747749033733,-430.0,0.00016712,2]
[361743400,1747749033743,-1265.02,0.00016712,2]
[361743401,1747749033754,-151.0,0.00016712,2]
[361743402,1747749033764,-430.0,0.00016712,2]
[361743403,1747749033775,-450.01846902,0.00016712,2]
[361743404,1747749033812,-37.75153098,0.00016712,2]
[361743405,1747749033822,-430.0,0.00016712,2]
[361743406,1747749033833,-430.0,0.00016712,2]
[361743407,1747749033842,-430.0,0.00016712,2]
[361743408,1747749033853,-1746.66,0.00016712,2]
[361743409,1747749033863,-151.0,0.00016712,2]
[361743410,1747749033873,-495.623678,0.00016712,2]
[361743411,1747749033883,-151.0,0.00016712,2]
[361743412,1747749033893,-495.623678,0.00016712,2]
[361743413,1747749033902,-430.0,0.00016712,2]
[361743414,1747749033912,-430.0,0.00016712,2]
[361743415,1747749033922,-430.0,0.00016712,2]
[361743416,1747749033932,-430.0,0.00016712,2]
[361743417,1747749033942,-430.0,0.00016712,2]
[361743418,1747749033951,-430.0,0.00016712,2]
[361743419,1747749033962,-151.0,0.00016712,2]
[361743420,1747749033972,-430.0,0.00016712,2]
[361743421,1747749033982,-151.0,0.00016712,2]
[361743422,1747749033992,-495.65,0.00016712,2]
[361743423,1747749034001,-615.97,0.00016712,2]
[361743424,1747749034011,-566.03,0.00016712,2]
[361743425,1747749034021,-1237.28,0.00016712,2]
[361743426,1747749034031,-430.0,0.00016712,2]
[361743427,1747749034041,-430.0,0.00016712,2]
[361743428,1747749034052,-151.0,0.00016712,2]
[361743429,1747749034062,-151.0,0.00016712,2]
[361743430,1747749034072,-430.0,0.00016712,2]
[361743431,1747749034082,-544.63,0.00016712,2]
[361743432,1747749034092,-151.0,0.00016712,2]
[361743433,1747749034102,-505.16711817,0.00016712,2]
[361743435,1747749034112,-297.66487984,0.00016844,2]
[361743437,1747749034122,-481.6647226,0.00016846,2]
[361743439,1747749034132,-151.0,0.00016886,2]
[361743441,1747749034141,-151.0,0.00016886,2]
[361743442,1747749034152,-151.0,0.00016886,2]
[361743444,1747749034162,-495.623678,0.00016886,2]
[361743446,1747749034171,-151.0,0.00016886,2]
[361743448,1747749034182,-495.623678,0.00016886,2]
[361743450,1747749034191,-151.0,0.00016886,2]
[361743452,1747749034201,-151.0,0.000169,2]
[361743454,1747749034211,-151.0,0.000169,2]
[361743455,1747749034220,-151.0,0.000169,2]
[361743457,1747749034230,-261.637592,0.000169,2]
[361743458,1747749034239,-151.0,0.000169,2]
[361743459,1747749034249,-151.0,0.000169,2]
[361743460,1747749034258,-151.0,0.000169,2]
[361743461,1747749034268,-1217.95321468,0.000169,2]
[361743488,1747749038402,-430.0,0.00016438,2]
[361743489,1747749038412,-430.0,0.00016712,2]
[361743490,1747749038423,-6355.81227279,0.000169,2]
[361743491,1747749038436,-151.0,0.00016946,2]
[361743492,1747749038447,-151.0,0.00016946,2]
[361743493,1747749038460,-155.017632,0.00016946,2]
[361743494,1747749038479,-151.0,0.00016946,2]
[361743495,1747749038491,-151.0,0.00016946,2]
[361743496,1747749038501,-151.0,0.00016946,2]
[361743497,1747749038510,-151.0,0.00016946,2]
[361743498,1747749038520,-151.0,0.00016946,2]
[361743499,1747749038530,-297.09801841,0.00016946,2]
[361743500,1747749038541,-151.0,0.00016986,2]
[361743501,1747749038550,-151.0,0.00016986,2]
[361743502,1747749038559,-151.0,0.00016986,2]
[361743503,1747749038569,-152.118194,0.00016986,2]
[361743504,1747749038579,-153.044529,0.00016986,2]
[361743505,1747749038588,-151.0,0.00016986,2]
[361743506,1747749038598,-151.0,0.00016986,2]
[361743507,1747749038607,-151.0,0.00016986,2]
[361743508,1747749038617,-216.397418,0.00016986,2]
[361743509,1747749038626,-151.0,0.00016986,2]
[361743510,1747749038636,-151.0,0.00016986,2]
[361743512,1747749038821,-151.0,0.00016986,2]
[361743513,1747749038843,-151.0,0.00016986,2]
[361743514,1747749038854,-151.0,0.00016986,2]
[361743516,1747749038864,-151.0,0.00016986,2]
[361743518,1747749038874,-151.0,0.00016986,2]
[361743520,1747749038884,-151.0,0.00016986,2]
[361743522,1747749038893,-185.190309,0.00016986,2]
[361743524,1747749038902,-185.190309,0.00016986,2]
[361743525,1747749038911,-151.0,0.00016986,2]
[361743528,1747749038921,-151.0,0.00016986,2]
[361743530,1747749038933,-151.0,0.00016986,2]
[361743532,1747749038943,-151.0,0.00016986,2]
[361743534,1747749038953,-151.0,0.00016986,2]
[361743536,1747749038963,-430.0,0.00016986,2]
[361743538,1747749038972,-151.0,0.00016986,2]
[361743539,1747749038983,-151.0,0.00016986,2]
[361743541,1747749038993,-151.0,0.00016986,2]
[361743543,1747749039003,-151.0,0.00016986,2]
[361743545,1747749039012,-151.0,0.00016986,2]
[361743547,1747749039021,-151.0,0.00016986,2]
[361743549,1747749039031,-151.0,0.00016986,2]
[361743551,1747749039041,-151.0,0.00016986,2]
[361743553,1747749039051,-151.0,0.00016986,2]
[361743555,1747749039060,-151.0,0.00016986,2]
[361743557,1747749039070,-151.0,0.00016986,2]
[361743559,1747749039080,-204.528086,0.00016986,2]
[361743561,1747749039089,-172.40983964,0.00016986,2]
[361743563,1747749039098,-430.0,0.00016986,2]
[361743565,1747749039108,-151.0,0.00016986,2]
[361743567,1747749039118,-151.0,0.00016986,2]
[361743569,1747749039127,-430.0,0.00016986,2]
[361743570,1747749039136,-430.0,0.00016986,2]
[361743572,1747749039146,-151.0,0.00016986,2]
[361743575,1747749039156,-151.0,0.00016986,2]
[361743577,1747749039166,-151.0,0.00016986,2]
[361743578,1747749039176,-585.25,0.00016986,2]
[361743580,1747749039189,-488.76,0.00016986,2]
[361743582,1747749039198,-709.82,0.00016986,2]
[361743584,1747749039207,-466.19,0.00016986,2]
[361743586,1747749039217,-430.0,0.00016986,2]
[361743587,1747749039227,-430.0,0.00016986,2]
[361743589,1747749039237,-430.0,0.00016986,2]